bitfinex/quotes_ETHUSD_20260308
["timestamp","ask_amount","ask_price","bid_price","bid_amount"]
[1772946805259,0.001,1943.4,1943.2,0.50058185]
[1772946806561,0.001,1943.4,1943.2,1.78711806]
[1772946806859,0.46752577,1943.7,1943.3,0.49948185]
[1772946807156,1.416,1943.6,1943.3,0.49948185]
[1772946808233,1.75468833,1943.8,1943.3,0.49948185]
[1772946808562,3.15968833,1943.8,1943.3,0.49948185]
[1772946809557,3.15968833,1943.8,1943.2,1.28763621]
[1772946809558,0.46752577,1943.7,1943.4,0.49948185]
[1772946811571,1.7537932,1943.7,1943.4,0.49948185]
[1772946811948,0.46752577,1943.7,1943.4,0.49948185]
[1772946814770,0.001,1943.6,1943.4,0.49948185]
[1772946816468,0.001,1943.6,1943.4,1.78587331]
[1772946816677,0.001,1943.6,1943.5,0.49537896]
[1772946821057,0.46804246,1943.9,1943.4,0.49537896]
[1772946822543,1.75412272,1943.9,1943.5,1.78171803]
[1772946823170,0.46804246,1943.9,1943.6,0.49537896]
[1772946824471,1.75411811,1943.9,1943.6,0.49537896]
[1772946826072,0.46804246,1943.9,1943.6,0.49537896]
[1772946826449,0.001,1943.8,1943.6,0.49537896]
[1772946828350,0.46904246,1943.8,1943.5,0.0011]
[1772946829084,0.46804246,1943.6,1943.5,0.0011]
[1772946829251,0.46804246,1943.6,1943.3,0.49537896]
[1772946830075,0.46804246,1943.6,1943.2,0.49647896]
[1772946830450,0.46804246,1943.6,1943.2,1.78301151]
[1772946830848,0.46804246,1943.6,1943.2,0.49647896]
[1772946831084,1.75434826,1943.6,1943.2,0.49647896]
[1772946833486,1.75434826,1943.6,1943.2,1.78300667]
[1772946833686,1.75434826,1943.6,1943.2,0.49647896]
[1772946833882,1.75434826,1943.6,1943.2,1.78301438]
[1772946834180,0.46804246,1943.6,1943.2,1.28763542]
[1772946834387,1.75431658,1943.6,1943.3,0.49537896]
[1772946834751,0.46804246,1943.6,1943.3,0.49537896]
[1772946835687,0.46804246,1943.7,1943.3,0.49537896]
[1772946838193,1.75428067,1943.7,1943.4,0.49647896]
[1772946838492,0.001,1943.6,1943.4,0.49647896]
[1772946842086,0.001,1943.6,1943.4,1.78283605]
[1772946842470,0.001,1943.6,1943.5,0.4657023]
[1772946842787,0.00153886,1944.0,1943.5,0.4657023]
[1772946844568,0.49024395,1944.5,1943.7,0.4657023]
[1772946844898,0.00153886,1944.3,1943.7,0.4657023]
[1772946846895,0.00153886,1944.3,1943.9,0.4657023]
[1772946847745,1.77580591,1944.7,1943.9,0.4657023]
[1772946848006,0.49024395,1944.7,1943.9,0.4657023]
[1772946848186,1.77581051,1944.7,1943.9,0.4657023]
[1772946848374,1.77579858,1944.7,1943.9,0.4657023]
[1772946848569,0.00153886,1944.6,1943.9,0.4657023]
[1772946848970,0.00153886,1944.6,1944.1,0.4657023]
[1772946849711,0.00153886,1944.5,1944.1,0.4657023]
[1772946850008,0.00153886,1944.7,1944.1,0.4657023]
[1772946850693,0.00153886,1944.6,1944.2,0.4657023]
[1772946850892,0.00153886,1944.8,1944.4,0.4657023]
[1772946851291,0.001,1944.6,1944.4,0.4657023]
[1772946852416,0.35183119,1944.9,1944.4,0.4657023]
[1772946852581,0.00153886,1944.8,1944.4,0.4657023]
[1772946852981,0.00153886,1944.8,1944.5,1.75137985]
[1772946853188,0.00153886,1944.7,1944.5,1.75137985]
[1772946853387,0.00153886,1944.8,1944.5,1.75137985]
[1772946853588,0.49178281,1944.8,1944.4,0.4657023]
[1772946853784,0.49178281,1944.7,1944.3,0.4657023]
[1772946853985,0.49024395,1944.7,1944.3,0.4657023]
[1772946854222,0.49178281,1944.8,1944.3,0.4657023]
[1772946854391,0.00153886,1944.7,1944.3,0.4657023]
[1772946855189,0.00153886,1944.7,1944.4,1.75144597]
[1772946855418,0.00153886,1944.6,1944.4,1.75144597]
[1772946855603,0.00153886,1944.7,1944.5,0.4657023]
[1772946856522,0.00153886,1944.6,1944.5,0.4657023]
[1772946856816,0.00153886,1944.7,1944.5,0.4657023]
[1772946857018,0.50474601,1944.7,1944.4,0.50072141]
[1772946857319,0.50628487,1944.7,1944.4,0.50072141]
[1772946857523,0.50628487,1944.7,1944.4,1.78644228]
[1772946857891,0.50628487,1944.7,1944.3,1.78647814]
[1772946858096,0.50628487,1944.7,1944.4,0.50072141]
[1772946858097,0.00153886,1944.6,1944.4,0.50072141]
[1772946859728,0.00153886,1944.6,1944.5,1.78639896]
[1772946859929,0.8565772,1944.9,1944.5,1.78639896]
[1772946859930,0.8565772,1944.9,1944.6,0.50072141]
[1772946860135,0.00153886,1944.8,1944.6,0.50072141]
[1772946860903,0.35183119,1944.9,1944.6,0.50072141]
[1772946861128,0.50474601,1945.2,1944.7,0.50072141]
[1772946861629,0.50474601,1945.2,1944.8,1.78620063]
[1772946862331,0.50474601,1945.2,1944.7,1.78622466]
[1772946862899,0.50474601,1945.1,1944.7,1.78622466]
[1772946863119,0.50474601,1945.1,1944.8,0.50072141]
[1772946863832,0.50474601,1945.1,1944.8,1.7861982]
[1772946864405,1.28522185,1945.2,1944.9,0.50072141]
[1772946864610,1.78993664,1945.3,1944.9,0.50072141]
[1772946865234,0.50474601,1945.2,1944.9,0.50072141]
[1772946865732,1.78998677,1945.2,1944.9,0.50072141]
[1772946866205,0.50474601,1945.1,1944.6,1.78629292]
[1772946866832,0.50474601,1945.1,1944.7,0.50072141]
[1772946868031,0.50474601,1945.1,1944.7,1.78621323]
[1772946870736,0.50474601,1945.0,1944.5,0.0011]
[1772946870928,0.50474601,1944.9,1944.4,0.0011]
[1772946872634,0.47992533,1944.8,1944.4,0.0011]
[1772946872933,0.47992533,1944.6,1944.4,0.0011]
[1772946874029,0.47992533,1944.8,1944.4,0.50599811]
[1772946875419,0.47992533,1944.7,1944.4,0.50599811]
[1772946875819,0.47992533,1944.7,1944.4,1.79173494]
[1772946876222,0.47992533,1944.7,1944.4,0.0011]
[1772946876419,0.47992533,1944.7,1944.5,0.0011]
[1772946876823,0.48092533,1944.7,1944.5,0.0011]
[1772946877730,0.47992533,1944.6,1944.5,0.0011]
[1772946877911,0.47992533,1944.6,1944.4,0.0011]
[1772946880942,0.47992533,1944.5,1944.4,0.0011]
[1772946886750,1.28656535,1944.7,1944.4,0.0011]
[1772946886751,0.47992533,1944.6,1944.4,0.0011]
[1772946888426,0.48092533,1944.7,1944.4,0.50599811]
[1772946888822,0.48092533,1944.7,1944.5,0.0011]
[1772946889422,0.001,1944.7,1944.5,0.50599811]
[1772946892153,0.47992533,1945.0,1944.6,0.50489811]
[1772946893652,0.47992533,1945.0,1944.7,1.28554532]
[1772946893853,0.47992533,1945.0,1944.7,1.79044343]
[1772946895877,0.47992533,1945.0,1944.7,1.79041295]
[1772946899544,1.76519338,1945.2,1944.8,0.50489811]
[1772946900310,1.76519338,1945.2,1944.9,0.50489811]
[1772946900566,0.47992533,1945.2,1944.9,0.50489811]
[1772946900771,0.47992533,1945.1,1944.8,0.50489811]
[1772946900974,0.001,1944.9,1944.6,1.79159498]
[1772946901174,0.48092533,1944.9,1944.6,0.0011]
[1772946901875,0.48092533,1944.9,1944.5,0.0011]
[1772946902377,0.4986528,1944.7,1944.5,0.0011]
[1772946902880,0.4986528,1944.7,1944.3,0.0011]
[1772946903041,0.4986528,1944.7,1944.0,1.77977868]
[1772946903042,0.49339145,1944.6,1944.0,1.77977868]
[1772946904652,0.49339145,1944.4,1944.0,0.49377718]
[1772946904857,0.49339145,1944.2,1943.6,0.49333832]
[1772946905070,0.49339145,1944.2,1943.6,0.0011]
[1772946905988,0.49339145,1944.2,1943.7,0.49223832]
[1772946906775,1.77918727,1944.4,1943.8,1.28614054]
[1772946906959,0.49339145,1944.4,1943.9,0.46651939]
[1772946907159,0.49339145,1944.3,1943.9,0.46651939]
[1772946907557,1.77901643,1944.6,1943.9,0.46651939]
[1772946907997,0.49339145,1944.5,1943.9,0.46651939]
[1772946909286,0.49339145,1944.4,1944.0,0.49223832]
[1772946910359,0.49339145,1944.4,1943.8,1.7783331]
[1772946910758,0.49339145,1944.5,1943.9,0.49223832]
[1772946912107,1.77910681,1944.5,1944.0,1.28600823]
[1772946912306,0.49339145,1944.4,1944.0,1.77824655]
[1772946913165,0.49339145,1944.4,1944.0,1.77934655]
[1772946915264,0.49339145,1944.4,1944.1,0.49223832]
[1772946916494,0.49339145,1944.4,1944.1,1.77816901]
[1772946917090,0.49339145,1944.4,1944.1,0.49223832]
[1772946917394,0.49339145,1944.4,1944.1,1.77816688]
[1772946917687,0.49339145,1944.4,1944.1,0.49223832]
[1772946918189,0.49339145,1944.4,1944.1,1.77817051]
[1772946919086,0.49439145,1944.5,1944.2,0.49223832]
[1772946919490,0.49439145,1944.5,1944.1,1.28593219]
[1772946919902,0.49439145,1944.5,1944.1,1.77817051]
[1772946920683,0.49439145,1944.5,1944.2,0.49223832]
[1772946921012,0.49439145,1944.5,1944.1,1.28593219]
[1772946922490,0.49439145,1944.5,1944.1,1.77817051]
[1772946922685,0.49439145,1944.5,1944.2,0.49223832]
[1772946924595,0.49439145,1944.5,1944.2,1.77806568]
[1772946924994,0.49339145,1944.4,1944.0,1.77930186]
[1772946925819,0.49439145,1944.4,1944.0,1.77930186]
[1772946926210,0.49439145,1944.4,1944.1,0.49223832]
[1772946927845,0.49439145,1944.4,1944.1,1.77816884]
[1772946928122,0.49439145,1944.4,1944.1,1.77818021]
[1772946931309,0.49339145,1944.8,1944.2,0.49223832]
[1772946931793,0.49339145,1944.8,1944.0,1.77930288]
[1772946932194,0.49339145,1944.8,1944.1,0.49223832]
[1772946933728,0.49004922,1944.6,1944.1,1.77813169]
[1772946937038,1.77571796,1944.6,1944.1,1.77813169]
[1772946937239,0.49004922,1944.5,1944.1,1.77813169]
[1772946937638,0.49004922,1944.5,1944.2,0.0011]
[1772946937941,0.49104922,1944.5,1944.2,0.0011]
[1772946939252,0.49004922,1944.4,1944.2,0.0011]
[1772946949163,0.49004922,1944.4,1944.0,0.0011]
[1772946949572,0.49004922,1944.4,1944.2,0.0011]
[1772946951464,1.28672302,1944.5,1944.2,0.48020253]
[1772946951670,0.001,1944.5,1944.2,0.48020253]
[1772946951844,0.49104922,1944.5,1944.2,0.48020253]
[1772946952045,1.77673297,1944.5,1944.2,0.48020253]
[1772946952369,0.49104922,1944.5,1944.2,0.48020253]
[1772946952916,1.77673959,1944.5,1944.2,0.48020253]
[1772946953236,0.49004922,1944.4,1944.2,0.0011]
[1772946953747,0.49004922,1944.3,1944.2,0.0011]
[1772946960611,0.49004922,1944.2,1944.0,0.0011]
[1772946960890,0.49004922,1944.2,1943.7,0.0011]
[1772946961090,0.49004922,1944.0,1943.6,0.0011]
[1772946961764,1.2868098,1944.3,1943.7,0.48411517]
[1772946961765,0.49824273,1944.2,1943.7,0.48411517]
[1772946961984,0.001,1944.3,1943.9,0.48301517]
[1772946962277,0.49924273,1944.3,1943.9,0.48301517]
[1772946962683,0.49924273,1944.3,1943.9,1.76906904]
[1772946963373,0.001,1944.3,1944.0,0.4732605]
[1772946964796,0.001,1944.3,1944.1,0.4721605]
[1772946965564,1.75084728,1944.5,1944.1,0.4721605]
[1772946965565,0.001,1944.5,1944.1,0.4721605]
[1772946967164,0.4651546,1944.5,1944.2,0.4721605]
[1772946972202,0.4651546,1944.5,1944.2,1.75797347]
[1772946972408,0.4641546,1944.5,1944.2,0.4721605]
[1772946973708,0.001,1944.4,1944.2,0.4721605]
[1772946973903,0.4651546,1944.4,1944.0,1.7581205]
[1772946975903,0.4651546,1944.4,1944.1,0.4721605]
[1772946976076,0.001,1944.4,1944.1,0.4721605]
[1772946977604,0.4651546,1944.4,1944.1,0.4721605]
[1772946980816,1.75090027,1944.4,1944.1,0.4721605]
[1772946981908,0.4641546,1944.3,1943.9,0.4721605]
[1772946982780,0.4641546,1944.2,1943.9,1.75821636]
[1772946985507,0.4641546,1944.2,1944.0,0.0011]
[1772946986786,0.4641546,1944.1,1944.0,0.0011]
[1772946987287,1.75001323,1944.3,1944.0,0.0011]
[1772946987483,0.4641546,1944.2,1944.0,0.0011]
[1772946989890,1.75008994,1944.2,1944.0,0.0011]
[1772946990312,0.4641546,1944.1,1943.8,0.0011]
[1772946990818,0.4641546,1944.1,1943.8,0.4732605]
[1772946990985,1.28593534,1944.2,1943.8,0.4732605]
[1772946991184,0.4641546,1944.1,1943.8,0.4732605]
[1772946992302,1.75008994,1944.2,1943.8,0.4732605]
[1772946992822,0.46578043,1944.1,1943.8,0.0011]
[1772946995716,1.75172836,1944.1,1943.8,0.0011]
[1772946995901,0.46578043,1944.0,1943.8,0.0011]
[1772946997123,0.46578043,1944.0,1943.9,0.0011]
[1772946997422,0.46678043,1944.0,1943.9,0.0011]
[1772946999642,0.23619032,1944.1,1943.9,0.0011]
[1772946999931,0.001,1944.4,1943.9,0.50279093]
[1772947000145,1.28674691,1944.4,1943.9,0.50279093]
[1772947000497,2.31569065,1944.4,1943.9,0.50279093]
[1772947001924,1.28674691,1944.4,1943.9,1.78885793]
[1772947003912,1.28674691,1944.4,1944.0,0.50169093]
[1772947004114,1.28674691,1944.4,1943.9,1.287167]
[1772947004115,1.28674691,1944.4,1944.1,0.50169093]
[1772947006023,1.28674691,1944.4,1943.9,0.50279093]
[1772947009212,0.001,1944.3,1944.0,0.50169093]
[1772947011454,0.001,1944.3,1944.2,0.50169093]
[1772947019247,0.001,1944.3,1944.0,0.50169093]
[1772947020023,0.001,1944.3,1944.2,0.50169093]
[1772947028953,1.28564597,1944.6,1944.2,0.4952947]
[1772947029926,1.29739328,1944.6,1944.2,0.4952947]
[1772947031459,1.28554967,1944.7,1944.3,0.4952947]
[1772947031827,5.15363822,1944.8,1944.4,0.4952947]
[1772947031828,1.28553026,1944.8,1944.4,0.4952947]
[1772947033727,0.001,1944.6,1944.4,0.4952947]
[1772947036957,0.001,1944.6,1944.4,1.78103663]
[1772947037256,1.28689471,1945.0,1944.5,0.4947947]
[1772947037557,0.00153886,1945.0,1944.5,0.4947947]
[1772947039861,0.00153886,1945.0,1944.7,0.4947947]
[1772947045363,0.00153886,1945.0,1944.8,0.4947947]
[1772947046467,0.001,1944.9,1944.8,0.4947947]
[1772947046630,5.15228078,1945.6,1944.8,0.4947947]
[1772947046838,0.01233064,1945.5,1944.8,0.4947947]
[1772947047166,1.29717573,1945.8,1944.8,0.4947947]
[1772947047364,1.29717573,1945.8,1945.0,0.4947947]
[1772947047939,1.2971111,1945.9,1945.0,0.4947947]
[1772947048858,0.01230859,1945.9,1945.0,0.4947947]
[1772947049063,0.0138041,1946.0,1945.0,0.4947947]
[1772947049259,0.00153886,1946.0,1945.2,0.4947947]
[1772947051761,0.00153886,1946.0,1945.4,0.4947947]
[1772947052854,0.01372035,1946.0,1945.4,0.4947947]
[1772947054675,0.01214104,1945.8,1945.3,0.4947947]
[1772947056470,2.31394483,1945.9,1945.3,0.4947947]
[1772947056644,0.01210151,1945.9,1945.3,0.4947947]
[1772947059376,1.29686249,1945.8,1945.3,0.4947947]
[1772947059878,1.29686249,1945.8,1945.4,0.4947947]
[1772947059879,1.28481858,1945.8,1945.4,0.4947947]
[1772947060372,1.28579989,1945.9,1945.4,0.4947947]
[1772947061576,1.2978065,1945.9,1945.4,0.4947947]
[1772947061747,1.2978065,1945.9,1945.5,0.4947947]
[1772947062447,0.001,1945.9,1945.5,0.4947947]
[1772947063750,0.001,1945.9,1945.6,0.46909231]
[1772947065585,0.001,1945.9,1945.7,0.48194351]
[1772947066258,1.32322217,1946.2,1945.7,0.48144351]
[1772947067479,0.03860212,1946.1,1945.7,0.48144351]
[1772947067681,0.03860212,1946.1,1945.8,0.48144351]
[1772947068882,1.32323092,1946.1,1945.8,0.48144351]
[1772947069086,0.03856811,1946.0,1945.3,0.48144351]
[1772947071982,1.32331538,1946.0,1945.5,0.48144351]
[1772947073185,0.001,1945.9,1945.5,0.48144351]
[1772947073574,1.27431538,1946.0,1945.5,0.50072756]
[1772947075486,1.28455451,1946.2,1945.6,0.50072756]
[1772947077589,1.02712147,1946.1,1945.4,0.50182756]
[1772947077785,1.418,1946.0,1945.4,0.50182756]
[1772947078772,2.44512147,1946.0,1945.4,0.0011]
[1772947079398,2.44512147,1946.0,1945.1,1.28637716]
[1772947079399,1.02712147,1945.6,1945.1,0.50745082]
[1772947079564,1.2850167,1945.5,1945.1,0.0011]
[1772947080697,2.7030167,1945.5,1945.1,0.0011]
[1772947082407,2.67872437,1945.5,1945.1,0.0011]
[1772947082701,2.67872437,1945.5,1945.1,0.50745082]
[1772947082905,7.55176606,1945.9,1945.1,0.50745082]
[1772947082906,1.28481858,1945.8,1945.1,0.50745082]
[1772947083069,1.419,1945.7,1945.1,0.50745082]
[1772947083269,1.28478365,1945.9,1945.1,0.50745082]
[1772947083581,1.28462052,1946.1,1945.2,1.28521488]
[1772947083778,2.70362052,1946.1,1945.3,0.50635082]
[1772947083985,2.70462052,1946.1,1945.3,0.50635082]
[1772947085609,2.70462052,1946.1,1945.5,0.50635082]
[1772947086108,0.001,1946.0,1945.5,0.50635082]
[1772947087703,1.02812147,1946.0,1945.5,0.50635082]
[1772947088040,1.02812147,1946.0,1945.4,0.50745082]
[1772947090211,1.28475255,1945.9,1945.5,0.50635082]
[1772947090426,1.02712147,1945.6,1944.9,0.50635082]
[1772947090714,1.421,1945.5,1944.9,0.50635082]
[1772947090916,1.421,1945.6,1944.9,0.50635082]
[1772947091592,2.44812147,1945.6,1944.9,0.50635082]
[1772947093209,0.49159794,1945.3,1944.8,0.47380677]
[1772947094813,0.49159794,1945.3,1944.6,0.47490677]
[1772947095112,1.28521488,1945.2,1944.7,0.47380677]
[1772947095290,1.77681282,1945.2,1944.7,0.47380677]
[1772947095622,1.77681282,1945.2,1944.8,0.47380677]
[1772947095796,1.28518902,1945.3,1944.8,0.47380677]
[1772947096113,5.51002892,1946.1,1944.8,0.47380677]
[1772947096114,2.70688461,1945.7,1944.8,0.47380677]
[1772947096312,0.49159794,1945.6,1944.8,0.47380677]
[1772947096514,1.28488461,1945.7,1944.8,0.47380677]
[1772947097283,1.77648255,1945.7,1945.0,0.47380677]
[1772947097586,0.49159794,1945.6,1945.0,0.47380677]
[1772947098887,0.49159794,1945.5,1945.0,0.47380677]
[1772947099418,1.28508275,1945.4,1945.0,0.47380677]
[1772947100421,1.423,1945.7,1945.1,0.47380677]
[1772947100422,1.28495065,1945.6,1945.1,0.47380677]
[1772947100637,2.70793298,1945.7,1945.1,0.47380677]
[1772947100829,1.28493298,1945.7,1945.1,0.47380677]
[1772947101002,1.77653092,1945.7,1945.1,0.47380677]
[1772947102011,0.49159794,1945.6,1945.1,0.47380677]
[1772947104726,1.2850167,1945.5,1945.1,0.47380677]
[1772947105018,1.77661464,1945.5,1945.1,0.47380677]
[1772947110317,1.28489431,1945.7,1945.2,0.47380677]
[1772947110628,7.05388109,1945.8,1945.2,0.47380677]
[1772947110629,1.77646151,1945.8,1945.2,0.47380677]
[1772947111310,1.42653886,1946.0,1945.2,0.47380677]
[1772947111311,1.28726866,1946.0,1945.2,0.47380677]
[1772947111502,0.00253886,1946.0,1945.4,0.47380677]
[1772947113552,0.00253886,1946.0,1945.6,0.48412578]
[1772947115725,0.00253886,1946.0,1945.8,0.48412578]
[1772947117931,0.48056635,1946.0,1945.6,0.48412578]
[1772947119427,0.00253886,1946.0,1945.6,0.48412578]
[1772947120539,0.00253886,1946.0,1945.8,0.48412578]
[1772947120848,0.00253886,1946.0,1945.3,1.28514882]
[1772947121011,0.00253886,1946.0,1945.4,0.48412578]
[1772947123256,0.00253886,1946.0,1945.6,0.48412578]
[1772947124031,0.001,1945.9,1945.6,0.48412578]
[1772947125262,0.001,1945.9,1945.8,0.48412578]
[1772947128646,0.00153886,1946.0,1945.8,0.48412578]
[1772947130479,0.00153886,1946.0,1945.8,1.76891651]
[1772947133279,0.00153886,1946.0,1945.9,0.48412578]
[1772947137979,0.00153886,1946.0,1945.9,0.48522578]
[1772947142500,0.00153886,1946.0,1945.9,1.76997833]
[1772947142799,0.00153886,1946.0,1945.9,0.48522578]
[1772947143001,0.00153886,1946.0,1945.9,0.0011]
[1772947144110,0.00153886,1946.0,1945.9,0.48246102]
[1772947144281,0.84969842,1946.3,1946.1,0.48136102]
[1772947146000,1.28412578,1946.9,1946.2,0.48136102]
[1772947146205,5.13778132,1947.0,1946.2,0.48136102]
[1772947146206,0.48617022,1946.8,1946.2,0.48136102]
[1772947146503,0.48617022,1946.8,1946.4,0.48136102]
[1772947148802,0.48617022,1946.9,1946.5,0.48136102]
[1772947149880,0.48617022,1946.9,1946.5,0.45565863]
[1772947150117,0.00153886,1947.0,1946.5,0.45565863]
[1772947150926,0.001,1946.7,1946.6,1.76565157]
[1772947151954,0.00153886,1947.0,1946.7,0.48136102]
[1772947152225,5.28984576,1947.6,1946.7,0.48136102]
[1772947152226,0.48617022,1947.5,1946.7,0.48136102]
[1772947152583,1.92514603,1947.6,1946.7,0.48136102]
[1772947152810,0.48617022,1947.5,1946.7,0.48136102]
[1772947153017,0.48617022,1947.5,1946.9,0.48136102]
[1772947153524,0.64148422,1947.6,1946.9,0.48136102]
[1772947153894,1.92512099,1947.6,1946.9,0.48136102]
[1772947154421,0.64148422,1947.6,1946.9,0.48136102]
[1772947154781,1.92515806,1947.6,1946.9,0.48136102]
[1772947154999,1.76991129,1947.5,1947.0,0.48136102]
[1772947155205,0.48617022,1947.5,1947.0,0.48136102]
[1772947155408,0.64148422,1947.6,1947.0,0.48136102]
[1772947155908,0.155314,1947.6,1947.0,0.48136102]
[1772947158009,0.155314,1947.6,1947.2,0.48136102]
[1772947159028,0.00153886,1948.0,1947.6,0.48136102]
[1772947159895,0.00153886,1948.0,1947.7,1.76492625]
[1772947160706,0.48770908,1948.0,1947.7,0.48136102]
[1772947161729,0.48770908,1948.0,1947.0,0.48136102]
[1772947161900,0.48617022,1947.8,1947.3,0.48136102]
[1772947162092,0.00153886,1948.0,1947.3,0.48136102]
[1772947162695,1.28490936,1948.0,1947.3,0.48136102]
[1772947162897,1.77107958,1948.0,1947.3,0.48136102]
[1772947163257,0.48617022,1947.9,1947.3,0.48136102]
[1772947164209,1.76966955,1947.8,1947.7,0.0011]
[1772947164407,0.48617022,1947.7,1947.3,0.48136102]
[1772947164825,0.48617022,1947.7,1947.5,0.0011]
[1772947165325,0.48617022,1947.5,1946.9,0.48136102]
[1772947165527,0.48617022,1947.7,1946.9,0.48136102]
[1772947166816,0.48617022,1947.5,1947.0,1.76538772]
[1772947167523,0.48617022,1947.5,1947.0,1.2840267]
[1772947167728,0.48617022,1947.5,1947.1,0.48136102]
[1772947169711,1.76987139,1947.5,1947.1,0.48136102]
[1772947169935,0.48617022,1947.4,1947.1,0.48136102]
[1772947170545,0.48617022,1947.4,1946.9,1.76541635]
[1772947170906,0.48617022,1947.4,1947.0,0.48136102]
[1772947172750,0.48617022,1947.4,1947.0,1.76537928]
[1772947173046,0.48617022,1947.4,1947.1,0.47303798]
[1772947175040,1.76994171,1947.4,1947.1,0.47303798]
[1772947176141,0.47319683,1947.2,1946.8,0.68399747]
[1772947176332,0.47319683,1947.2,1946.8,0.21095949]
[1772947177052,1.75715759,1947.1,1946.8,0.21095949]
[1772947177246,0.47319683,1947.0,1946.8,0.21095949]
[1772947177953,0.39346497,1946.8,1946.2,0.47303798]
[1772947179154,1.28422458,1946.7,1946.2,0.47303798]
[1772947179353,0.39346054,1946.6,1946.2,0.47303798]
[1772947180156,0.39346054,1946.6,1946.0,0.00153886]
[1772947180321,0.39346054,1946.6,1946.0,0.47457684]
[1772947180652,0.39346054,1946.6,1946.0,0.00153886]
[1772947181030,1.80845184,1946.5,1946.0,0.47457684]
[1772947181255,0.39345184,1946.5,1946.0,1.75924074]
[1772947181652,0.39345184,1946.5,1946.1,0.47303798]
[1772947181955,0.39344756,1946.8,1946.1,0.47303798]
[1772947182734,0.39344756,1946.8,1946.0,1.28620276]
[1772947183051,0.39344756,1946.8,1946.0,0.00153886]
[1772947183243,0.39344756,1946.8,1946.0,0.47457684]
[1772947183454,0.39344333,1946.6,1946.0,0.47457684]
[1772947183641,0.39344333,1946.6,1946.0,1.75925728]
[1772947185259,0.39344333,1946.6,1946.0,0.00153886]
[1772947185456,0.39343503,1946.4,1946.0,0.00153886]
[1772947187668,1.67791542,1946.3,1946.0,0.00153886]
[1772947187833,0.39342691,1946.3,1946.0,0.00153886]
[1772947188031,3.09580782,1946.5,1946.0,0.00153886]
[1772947188337,1.67770776,1946.7,1946.0,0.47457684]
[1772947188543,0.39342292,1946.6,1946.0,0.47457684]
[1772947188946,1.67762171,1946.8,1946.0,0.47457684]
[1772947189661,5.13648974,1946.9,1946.1,1.28462052]
[1772947189662,0.39341897,1946.7,1946.1,1.28462052]
[1772947189858,0.39341897,1946.7,1946.1,1.7576585]
[1772947190067,0.39341897,1946.7,1946.1,0.47303798]
[1772947190864,0.39341897,1946.7,1946.1,0.47413798]
[1772947191361,0.39341897,1946.7,1946.1,0.0011]
[1772947192347,0.39340741,1946.5,1946.1,0.0011]
[1772947194449,0.39339992,1946.7,1946.2,0.44734917]
[1772947195245,0.41908505,1946.8,1946.2,0.44734917]
[1772947198370,1.28422458,1946.7,1946.3,0.47303798]
[1772947202073,1.70328503,1946.7,1946.3,1.75751843]
[1772947202262,1.2841589,1946.8,1946.4,0.48676047]
[1772947202475,0.4190571,1946.8,1946.4,0.48676047]
[1772947202784,1.42,1947.0,1946.4,0.48676047]
[1772947202983,6.97527559,1947.4,1946.4,0.48676047]
[1772947203291,3.12383073,1947.4,1946.4,0.45075064]
[1772947203655,0.4190505,1947.3,1946.4,0.45075064]
[1772947204170,0.4190505,1947.3,1946.6,0.45075064]
[1772947204473,0.41904726,1947.2,1946.6,0.45075064]
[1772947206256,0.41904726,1947.2,1946.4,5.13742614]
[1772947206257,0.41904089,1947.0,1946.4,0.45075064]
[1772947207090,0.41904089,1947.0,1946.2,0.45075064]
[1772947207671,0.41904089,1947.0,1946.1,1.28569841]
[1772947207995,0.41904089,1947.0,1946.1,1.28571773]
[1772947208161,0.41904089,1947.0,1946.1,0.0011]
[1772947208688,0.41903467,1946.8,1946.1,0.0011]
[1772947208879,0.41903467,1946.7,1946.1,0.0011]
[1772947209281,0.41903467,1946.7,1946.1,0.45185064]
[1772947210156,0.41903467,1946.7,1946.1,0.0011]
[1772947211191,0.41902559,1946.5,1946.1,0.0011]
[1772947211855,0.41902559,1946.5,1946.1,0.45185064]
[1772947213196,1.70343277,1946.5,1946.1,0.45185064]
[1772947214997,1.70343277,1946.5,1946.2,0.0011]
[1772947214998,0.41901683,1946.4,1946.2,0.0011]
[1772947215195,1.70343947,1946.4,1946.2,0.0011]
[1772947215824,0.41901398,1946.3,1946.2,0.0011]
[1772947217198,1.70341588,1946.5,1946.2,0.0011]
[1772947217793,5.13680494,1946.8,1946.2,0.45185064]
[1772947217999,1.70323295,1946.7,1946.2,0.45185064]
[1772947218201,3.12323295,1946.7,1946.2,0.45185064]
[1772947218408,1.83900837,1946.7,1946.2,0.45185064]
[1772947218595,0.001,1947.1,1946.2,0.45185064]
[1772947218596,0.41900561,1946.9,1946.2,0.45185064]
[1772947220999,1.28415861,1946.8,1946.4,0.45075064]
[1772947221597,3.12400024,1947.1,1946.4,0.45075064]
[1772947221801,0.41999753,1947.1,1946.4,0.45075064]
[1772947221998,1.70399105,1947.1,1946.4,0.45075064]
[1772947222600,1.70398424,1947.1,1946.4,0.45075064]
[1772947223780,1.70398424,1947.1,1946.5,1.28435653]
[1772947223976,1.70398424,1947.1,1946.6,0.45075064]
[1772947225821,1.28498671,1947.1,1946.6,0.45075064]
[1772947225980,0.41898718,1947.0,1946.6,1.73503508]
[1772947226178,0.41898718,1947.0,1946.6,0.45075064]
[1772947226514,1.70397138,1947.1,1946.7,0.45075064]
[1772947227301,0.41898218,1947.0,1946.7,0.45075064]
[1772947227897,0.41898218,1947.0,1946.7,1.73495489]
[1772947228081,0.41898218,1947.0,1946.7,0.45075064]
[1772947228287,0.41898218,1947.0,1946.7,1.7349733]
[1772947228492,0.41998218,1947.0,1946.7,1.7349733]
[1772947228801,0.41998218,1947.0,1946.7,0.45075064]
[1772947229485,0.41998218,1947.0,1946.7,1.73496889]
[1772947231390,1.28387695,1947.3,1946.8,0.45075064]
[1772947231777,1.72953419,1947.3,1946.8,0.45075064]
[1772947232488,1.72953419,1947.3,1946.9,0.45913901]
[1772947234506,3.15037378,1947.5,1947.0,0.45913901]
[1772947234810,0.44564802,1947.4,1947.0,0.45913901]
[1772947236910,0.44564356,1947.3,1947.0,0.45913901]
[1772947237293,0.44564356,1947.3,1947.0,1.7431607]
[1772947237706,0.44564356,1947.3,1947.0,0.45913901]
[1772947238724,0.44564356,1947.3,1947.0,1.74316569]
[1772947240230,0.44564356,1947.3,1947.0,0.45913901]
[1772947240832,0.44564356,1947.3,1947.1,0.0011]
[1772947241129,0.44664356,1947.3,1947.1,0.0011]
[1772947242408,0.44563081,1947.2,1947.1,0.0011]
[1772947245421,1.72952563,1947.2,1947.1,0.0011]
[1772947246024,1.72952563,1947.2,1947.0,0.0011]
[1772947253659,1.72952563,1947.2,1947.1,0.0011]
[1772947253843,1.72952563,1947.2,1947.0,0.0011]
[1772947255652,0.44560602,1947.1,1946.8,0.46023901]
[1772947256657,0.001,1947.3,1946.9,0.45913901]
[1772947256855,0.001,1947.3,1947.1,0.45913901]
[1772947257368,1.28364545,1947.6,1947.2,0.45913901]
[1772947257566,2.71064545,1947.6,1947.2,0.45913901]